fUST/lending_fUST_20250516
["ID","MTS","AMOUNT","RATE_DAILY","PERIOD"]
[361180168,1747326655696,-450.0,0.00016841,2]
[361180169,1747326655707,-450.0,0.00016841,2]
[361180170,1747326655717,-300.0,0.00016841,2]
[361180171,1747326655726,-389.58,0.00016841,2]
[361180172,1747326655736,-450.0,0.00016841,2]
[361180173,1747326655745,-300.0,0.00016841,2]
[361180174,1747326655754,-279.12,0.00016841,2]
[361180175,1747326655763,-450.0,0.00016841,2]
[361180176,1747326655773,-151.0,0.00016845,2]
[361180177,1747326655782,-972.21687,0.00016845,2]
[361180178,1747326655791,-151.0,0.00016845,2]
[361180179,1747326655801,-167.064468,0.00016845,2]
[361180180,1747326655810,-972.21687,0.00016845,2]
[361180181,1747326655819,-167.064468,0.00016845,2]
[361180182,1747326655829,-151.0,0.00016845,2]
[361180183,1747326655838,-500.0,0.00016846,2]
[361180184,1747326655848,-329.31,0.00016847,2]
[361180185,1747326655857,-491.62040934,0.00016847,2]
[361180186,1747326655867,-450.0,0.00016847,2]
[361180187,1747326655878,-450.0,0.00016847,2]
[361180188,1747326655888,-450.0,0.00016849,2]
[361180189,1747326655897,-450.0,0.00016849,2]
[361180190,1747326655907,-450.0,0.00016849,2]
[361180191,1747326655916,-450.0,0.00016849,2]
[361180192,1747326655925,-450.0,0.00016849,2]
[361180193,1747326655935,-450.0,0.00016849,2]
[361180194,1747326655944,-154.02,0.00016849,2]
[361180195,1747326655953,-450.0,0.00016849,2]
[361180196,1747326655963,-450.0,0.00016849,2]
[361180197,1747326655972,-450.0,0.00016849,2]
[361180198,1747326655982,-450.0,0.00016849,2]
[361180199,1747326655991,-450.0,0.00016849,2]
[361180200,1747326656001,-481.6,0.00016849,2]
[361180201,1747326656011,-450.0,0.00016849,2]
[361180202,1747326656021,-450.0,0.00016849,2]
[361180203,1747326656030,-189.54,0.00016849,2]
[361180204,1747326656040,-450.0,0.00016849,2]
[361180205,1747326656049,-450.0,0.00016849,2]
[361180206,1747326656059,-1158.53,0.00016849,2]
[361180207,1747326656068,-450.0,0.00016849,2]
[361180208,1747326656078,-257.68,0.00016849,2]
[361180209,1747326656087,-2023.39,0.00016849,2]
[361180210,1747326656096,-450.0,0.00016849,2]
[361180211,1747326656106,-450.0,0.00016849,2]
[361180212,1747326656115,-450.0,0.00016849,2]
[361180213,1747326656124,-450.0,0.00016849,2]
[361180214,1747326656133,-450.0,0.00016849,2]
[361180215,1747326656142,-450.0,0.00016849,2]
[361180216,1747326656151,-450.0,0.00016849,2]
[361180217,1747326656162,-2030.47,0.00016849,2]
[361180218,1747326656171,-558.77,0.00016849,2]
[361180219,1747326656181,-450.0,0.00016849,2]
[361180220,1747326656190,-450.0,0.00016849,2]
[361180221,1747326656199,-450.0,0.00016849,2]
[361180222,1747326656209,-450.0,0.00016849,2]
[361180223,1747326656219,-351.23,0.00016882,2]
[361180224,1747326656229,-285.41,0.00016882,2]
[361180225,1747326656238,-450.0,0.00016882,2]
[361180226,1747326656247,-450.0,0.00016882,2]
[361180227,1747326656257,-552.99,0.00016882,2]
[361180228,1747326656266,-450.0,0.00016882,2]
[361180229,1747326656275,-376.93,0.00016882,2]
[361180230,1747326656285,-450.0,0.00016882,2]
[361180231,1747326656295,-450.0,0.00016882,2]
[361180232,1747326656305,-450.0,0.00016882,2]
[361180233,1747326656314,-282.52,0.00016882,2]
[361180234,1747326656323,-450.0,0.00016882,2]
[361180235,1747326656333,-157.98,0.00016882,2]
[361180236,1747326656342,-450.0,0.00016882,2]
[361180237,1747326656351,-450.0,0.00016882,2]
[361180238,1747326656360,-450.0,0.00016882,2]
[361180239,1747326656370,-450.0,0.00016882,2]
[361180240,1747326656379,-450.0,0.00016882,2]
[361180241,1747326656388,-450.0,0.00016882,2]
[361180242,1747326656398,-450.0,0.00016882,2]
[361180243,1747326656408,-450.0,0.00016882,2]
[361180244,1747326656417,-606.51,0.00016882,2]
[361180245,1747326656427,-450.0,0.00016882,2]
[361180246,1747326656435,-450.0,0.00016882,2]
[361180247,1747326656445,-641.93,0.00016882,2]
[361180248,1747326656454,-450.0,0.00016882,2]
[361180249,1747326656463,-174.39,0.00016882,2]
[361180250,1747326656472,-450.0,0.00016882,2]
[361180251,1747326656482,-451.1,0.00016882,2]
[361180252,1747326656491,-450.0,0.00016882,2]
[361180253,1747326656500,-450.0,0.00016882,2]
[361180254,1747326656510,-498.2,0.00016882,2]
[361180255,1747326656519,-450.0,0.00016882,2]
[361180256,1747326656528,-450.0,0.00016882,2]
[361180257,1747326656538,-450.0,0.00016882,2]
[361180258,1747326656547,-450.0,0.00016882,2]
[361180259,1747326656556,-546.26,0.00016882,2]
[361180260,1747326656566,-490.8,0.00016882,2]
[361180261,1747326656576,-450.0,0.00016882,2]
[361180262,1747326656585,-450.0,0.00016882,2]
[361180263,1747326656595,-450.0,0.00016883,2]
[361180264,1747326656604,-382.77,0.00016883,2]
[361180265,1747326656613,-599.17,0.00016883,2]
[361180266,1747326656624,-450.0,0.00016883,2]
[361180267,1747326656637,-450.0,0.00016973,2]
[361180268,1747326656646,-465.42,0.00016973,2]
[361180269,1747326656655,-317.36,0.00016978,2]
[361180270,1747326656667,-261.33356,0.00016978,2]
[361180271,1747326656677,-261.333552,0.00016978,2]
[361180272,1747326656687,-151.0,0.00016978,2]
[361180273,1747326656697,-215.842224,0.00016978,2]
[361180274,1747326656706,-162.956746,0.00016978,2]
[361180275,1747326656716,-162.956746,0.00016978,2]
[361180276,1747326656808,-1506.258,0.00016978,2]
[361180277,1747326656817,-1506.257994,0.00016978,2]
[361180278,1747326656825,-151.0,0.00016978,2]
[361180279,1747326656834,-983.75,0.00016978,2]
[361180280,1747326656843,-151.0,0.00016978,2]
[361180281,1747326656851,-889.47603,0.00016978,2]
[361180282,1747326656861,-889.47603,0.00016978,2]
[361180283,1747326656870,-166.885076,0.00016978,2]
[361180284,1747326656879,-166.885067,0.00016978,2]
[361180285,1747326656889,-250.0,0.00016978,2]
[361180286,1747326656896,-250.0,0.00016978,2]
[361180287,1747326656905,-450.0,0.00016978,2]
[361180288,1747326656914,-174.42459696,0.00016978,2]
[361180289,1747326657042,-275.57540304,0.00016978,2]
[361180290,1747326657055,-557.49,0.00016978,2]
[361180291,1747326657065,-450.0,0.00016978,2]
[361180292,1747326657075,-206.02,0.00016978,2]
[361180293,1747326657085,-450.0,0.00016978,2]
[361180294,1747326657095,-450.0,0.00016978,2]
[361180295,1747326657105,-215.91,0.00016978,2]
[361180296,1747326657115,-269.33,0.00016978,2]
[361180297,1747326657126,-450.0,0.00016978,2]
[361180298,1747326657137,-398.89,0.00016978,2]
[361180299,1747326657147,-375.73,0.00016978,2]
[361180300,1747326657157,-250.0,0.00016978,2]
[361180301,1747326657167,-250.0,0.00016978,2]
[361180302,1747326657177,-450.0,0.00016978,2]
[361180303,1747326657187,-250.0,0.00016978,2]
[361180304,1747326657197,-450.0,0.00016978,2]
[361180305,1747326657206,-184.4,0.00016978,2]
[361180306,1747326657215,-450.0,0.00016978,2]
[361180307,1747326657224,-250.0,0.00016978,2]
[361180308,1747326657235,-250.0,0.00016978,2]
[361180309,1747326657245,-250.0,0.00016978,2]
[361180310,1747326657255,-151.0,0.00016982,2]
[361180311,1747326657264,-151.0,0.00016982,2]
[361180312,1747326657273,-349.2,0.00016984,2]
[361180313,1747326657283,-450.0,0.00016984,2]
[361180314,1747326657293,-151.0,0.00016984,2]
[361180315,1747326657302,-151.0,0.00016984,2]
[361180316,1747326657312,-151.0,0.00016984,2]
[361180317,1747326657321,-151.0,0.00016984,2]
[361180318,1747326657331,-152.11673,0.00016984,2]
[361180319,1747326657340,-152.11673,0.00016984,2]
[361180320,1747326657350,-151.0,0.00016985,2]
[361180321,1747326657360,-450.0,0.00016986,2]
[361180322,1747326657370,-450.0,0.00016986,2]
[361180323,1747326657379,-450.0,0.00016986,2]
[361180324,1747326657389,-450.0,0.00016986,2]
[361180325,1747326657398,-450.0,0.00016986,2]
[361180326,1747326657408,-450.0,0.00016986,2]
[361180327,1747326657418,-450.0,0.00016986,2]
[361180328,1747326657427,-533.83,0.00016986,2]
[361180329,1747326657436,-595.37,0.00016986,2]
[361180330,1747326657446,-450.0,0.00016986,2]
[361180331,1747326657455,-450.0,0.00016986,2]
[361180332,1747326657465,-179.68,0.00016986,2]
[361180333,1747326657475,-450.0,0.00016986,2]
[361180334,1747326657484,-175.03,0.00016986,2]
[361180335,1747326657493,-450.0,0.00016986,2]
[361180336,1747326657504,-1158.53,0.00016986,2]
[361180337,1747326657514,-450.0,0.00016986,2]
[361180338,1747326657524,-2023.39,0.00016986,2]
[361180339,1747326657533,-450.0,0.00016986,2]
[361180340,1747326657542,-450.0,0.00016986,2]
[361180341,1747326657552,-450.0,0.00016986,2]
[361180342,1747326657561,-291.18,0.00016986,2]
[361180343,1747326657571,-450.0,0.00016986,2]
[361180344,1747326657581,-450.0,0.00016986,2]
[361180345,1747326657589,-450.0,0.00016986,2]
[361180346,1747326657599,-2030.47,0.00016986,2]
[361180347,1747326657609,-558.77,0.00016986,2]
[361180348,1747326657619,-450.0,0.00016986,2]
[361180349,1747326657629,-443.87,0.00016986,2]
[361180350,1747326657640,-450.0,0.00016986,2]
[361180351,1747326657650,-450.0,0.00016986,2]
[361180352,1747326657660,-1000.0,0.00017,8]
[361180353,1747326657670,-151.0,0.00017,2]
[361180354,1747326657682,-652.61296533,0.00017011,2]
[361180355,1747326657693,-450.0,0.00017019,2]
[361180356,1747326657703,-199.41,0.00017019,2]
[361180357,1747326657713,-410.8,0.00017019,2]
[361180358,1747326657723,-450.0,0.00017019,2]
[361180359,1747326657733,-450.0,0.00017019,2]
[361180360,1747326657743,-450.0,0.00017019,2]
[361180361,1747326657753,-565.12,0.00017019,2]
[361180362,1747326657764,-153.38,0.00017019,2]
[361180363,1747326657774,-450.0,0.00017019,2]
[361180364,1747326657784,-234.1,0.00017019,2]
[361180365,1747326657795,-450.0,0.00017019,2]
[361180366,1747326657806,-450.0,0.00017019,2]
[361180367,1747326657815,-450.0,0.00017019,2]
[361180368,1747326657826,-450.0,0.00017019,2]
[361180369,1747326657836,-450.0,0.00017019,2]
[361180370,1747326657845,-606.51,0.00017019,2]
[361180371,1747326657855,-450.0,0.00017019,2]
[361180372,1747326657865,-450.0,0.00017019,2]
[361180373,1747326657877,-641.93,0.00017019,2]
[361180374,1747326657888,-450.0,0.00017019,2]
[361180375,1747326657898,-450.0,0.00017019,2]
[361180376,1747326657908,-451.1,0.00017019,2]
[361180377,1747326657918,-450.0,0.00017019,2]
[361180378,1747326657928,-320.24,0.00017019,2]
[361180379,1747326657938,-450.0,0.00017019,2]
[361180380,1747326657947,-450.0,0.00017019,2]
[361180381,1747326657957,-450.0,0.00017019,2]
[361180382,1747326657967,-450.0,0.00017019,2]
[361180383,1747326657977,-546.26,0.00017019,2]
[361180384,1747326657988,-490.8,0.00017019,2]
[361180385,1747326657998,-450.0,0.00017019,2]
[361180386,1747326658009,-446.16,0.00017019,2]
[361180387,1747326658018,-500.0,0.00017019,2]
[361180388,1747326658028,-450.0,0.0001702,2]
[361180389,1747326658038,-450.0,0.0001702,2]
[361180390,1747326658048,-1000.0,0.00017021,2]
[361180391,1747326658058,-500.0,0.00017021,2]
[361180392,1747326658068,-1000.0,0.00017021,2]
[361180393,1747326658078,-1004.85774466,0.00017021,2]
[361180394,1747326658088,-1000.0,0.00017021,2]
[361180395,1747326658098,-1000.0,0.00017021,2]
[361180396,1747326658108,-477.37737662,0.00017021,2]
[361180397,1747326658119,-1006.50229571,0.00017021,2]
[361180398,1747326658129,-503.27373249,0.00017021,2]
[361180399,1747326658139,-501.44302731,0.00017021,2]
[361180400,1747326658237,-1000.0,0.00017021,2]
[361180401,1747326658247,-1000.0,0.00017021,2]
[361180402,1747326658258,-1000.0,0.00017021,2]
[361180403,1747326658268,-1000.0,0.00017021,2]
[361180404,1747326658278,-1000.0,0.00017021,2]
[361180405,1747326658288,-1103.12904762,0.00017021,2]
[361180406,1747326658298,-151.0,0.000171,2]
[361180407,1747326658308,-345.18,0.0001711,2]
[361180408,1747326658317,-983.75,0.00017115,2]
[361180409,1747326658327,-450.0,0.00017115,2]
[361180410,1747326658338,-450.0,0.00017115,2]
[361180411,1747326658347,-450.0,0.00017115,2]
[361180412,1747326658358,-590.79,0.00017115,2]
[361180413,1747326658371,-450.0,0.00017115,2]
[361180414,1747326658381,-450.0,0.00017115,2]
[361180415,1747326658390,-543.31,0.00017115,2]
[361180416,1747326658400,-450.0,0.00017115,2]
[361180417,1747326658410,-450.0,0.00017115,2]
[361180418,1747326658420,-234.9466709,0.00017121,2]
[361180419,1747326658429,-1000.0,0.00017121,2]
[361180420,1747326658439,-1000.0,0.00017121,2]
[361180421,1747326658449,-289.30777955,0.00017121,2]
[361180422,1747326658459,-1000.0,0.00017121,2]
[361180423,1747326658469,-1000.0,0.00017121,2]
[361180424,1747326658479,-1000.0,0.00017121,2]
[361180425,1747326658488,-450.0,0.00017121,2]
[361180426,1747326658498,-165.902412,0.00017121,2]
[361180427,1747326658508,-277.73,0.00017123,2]
[361180428,1747326658518,-450.0,0.00017123,2]
[361180429,1747326658528,-160.86,0.00017123,2]
[361180430,1747326658537,-529.69,0.00017123,2]
[361180431,1747326658547,-450.0,0.00017123,2]
[361180432,1747326658557,-450.0,0.00017123,2]
[361180433,1747326658567,-450.0,0.00017123,2]
[361180434,1747326658577,-592.19,0.00017123,2]
[361180435,1747326658586,-450.0,0.00017123,2]
[361180436,1747326658595,-450.0,0.00017123,2]
[361180437,1747326658605,-450.0,0.00017123,2]
[361180438,1747326658616,-1158.53,0.00017123,2]
[361180439,1747326658629,-450.0,0.00017123,2]
[361180440,1747326658640,-2023.39,0.00017123,2]
[361180441,1747326658649,-450.0,0.00017123,2]
[361180442,1747326658659,-450.0,0.00017123,2]
[361180443,1747326658670,-450.0,0.00017123,2]
[361180444,1747326658680,-450.0,0.00017123,2]
[361180445,1747326658691,-450.0,0.00017123,2]
[361180446,1747326658700,-450.0,0.00017123,2]
[361180447,1747326658712,-2030.47,0.00017123,2]
[361180448,1747326658722,-558.77,0.00017123,2]
[361180449,1747326658732,-450.0,0.00017123,2]
[361180450,1747326658742,-450.0,0.00017123,2]
[361180451,1747326658751,-430.05,0.00017123,2]
[361180452,1747326658760,-450.0,0.00017156,2]
[361180453,1747326658769,-450.0,0.00017156,2]
[361180454,1747326658778,-283.13,0.00017156,2]
[361180455,1747326658787,-206.49,0.00017156,2]
[361180456,1747326658797,-450.0,0.00017156,2]
[361180457,1747326658806,-450.0,0.00017156,2]
[361180458,1747326658816,-450.0,0.00017156,2]
[361180459,1747326658825,-450.0,0.00017156,2]
[361180460,1747326658834,-334.66,0.00017156,2]
[361180461,1747326658843,-185.94,0.00017156,2]
[361180462,1747326658853,-606.51,0.00017156,2]
[361180463,1747326658863,-450.0,0.00017156,2]
[361180464,1747326658874,-450.0,0.00017156,2]
[361180465,1747326658884,-641.93,0.00017156,2]
[361180466,1747326658894,-450.0,0.00017156,2]
[361180467,1747326658904,-450.0,0.00017156,2]
[361180468,1747326658914,-451.1,0.00017156,2]
[361180469,1747326658925,-450.0,0.00017156,2]
[361180470,1747326658935,-450.0,0.00017156,2]
[361180471,1747326658945,-450.0,0.00017156,2]
[361180472,1747326658955,-450.0,0.00017156,2]
[361180473,1747326658965,-450.0,0.00017156,2]
[361180474,1747326658975,-546.26,0.00017156,2]
[361180475,1747326658986,-490.8,0.00017156,2]
[361180476,1747326658997,-450.0,0.00017156,2]
[361180477,1747326659006,-544.55,0.00017157,2]
[361180478,1747326659015,-313.1,0.00017157,2]
[361180479,1747326659025,-151.0,0.000172,2]
[361180480,1747326659035,-1000.0,0.00017244,2]
[361180481,1747326659044,-151.0,0.00017252,2]
[361180482,1747326659059,-162.956746,0.00017252,2]
[361180483,1747326659068,-162.956748,0.00017252,2]
[361180484,1747326659078,-983.75,0.00017252,2]
[361180485,1747326659087,-889.47603,0.00017252,2]
[361180486,1747326659096,-889.476035,0.00017252,2]
[361180487,1747326659106,-518.05,0.00017252,2]
[361180488,1747326659116,-450.0,0.00017252,2]
[361180489,1747326659126,-450.0,0.00017252,2]
[361180490,1747326659135,-450.0,0.00017252,2]
[361180491,1747326659145,-315.79,0.00017252,2]
[361180492,1747326659155,-450.0,0.00017252,2]
[361180493,1747326659165,-450.0,0.00017252,2]
[361180494,1747326659174,-450.0,0.00017258,2]
[361180495,1747326659184,-151.0,0.00017259,2]
[361180496,1747326659194,-151.0,0.00017259,2]
[361180497,1747326659203,-450.0,0.0001726,2]
[361180498,1747326659213,-290.54,0.0001726,2]
[361180499,1747326659223,-450.0,0.0001726,2]
[361180500,1747326659233,-585.9,0.0001726,2]
[361180501,1747326659243,-450.0,0.0001726,2]
[361180502,1747326659253,-450.0,0.0001726,2]
[361180503,1747326659262,-281.78,0.0001726,2]
[361180504,1747326659273,-1158.53,0.0001726,2]
[361180505,1747326659283,-450.0,0.0001726,2]
[361180506,1747326659292,-2023.39,0.0001726,2]
[361180507,1747326659302,-450.0,0.0001726,2]
[361180508,1747326659311,-450.0,0.0001726,2]
[361180509,1747326659320,-450.0,0.0001726,2]
[361180510,1747326659330,-178.88,0.0001726,2]
[361180511,1747326659340,-450.0,0.0001726,2]
[361180512,1747326659350,-430.58,0.0001726,2]
[361180513,1747326659360,-2030.47,0.0001726,2]
[361180514,1747326659372,-558.77,0.0001726,2]
[361180515,1747326659382,-450.0,0.0001726,2]
[361180516,1747326659392,-450.0,0.0001726,2]
[361180517,1747326659402,-215.93,0.00017293,2]
[361180518,1747326659412,-450.0,0.00017293,2]
[361180519,1747326659422,-450.0,0.00017293,2]
[361180520,1747326659431,-450.0,0.00017293,2]
[361180521,1747326659441,-450.0,0.00017293,2]
[361180522,1747326659451,-450.0,0.00017293,2]
[361180523,1747326659461,-606.51,0.00017293,2]
[361180524,1747326659471,-450.0,0.00017293,2]
[361180525,1747326659481,-325.36,0.00017293,2]
[361180526,1747326659492,-641.93,0.00017293,2]
[361180527,1747326659502,-450.0,0.00017293,2]
[361180528,1747326659512,-450.0,0.00017293,2]
[361180529,1747326659522,-451.1,0.00017293,2]
[361180530,1747326659532,-450.0,0.00017293,2]
[361180531,1747326659541,-450.0,0.00017293,2]
[361180532,1747326659551,-450.0,0.00017293,2]
[361180533,1747326659561,-450.0,0.00017293,2]
[361180534,1747326659645,-450.0,0.00017293,2]
[361180535,1747326659656,-546.26,0.00017293,2]
[361180536,1747326659667,-490.8,0.00017293,2]
[361180537,1747326659677,-450.0,0.00017293,2]
[361180538,1747326659687,-983.75,0.00017389,2]
[361180539,1747326659696,-450.0,0.00017389,2]
[361180540,1747326659708,-468.46,0.00017389,2]
[361180541,1747326659718,-450.0,0.00017389,2]
[361180542,1747326659727,-450.0,0.00017389,2]
[361180543,1747326659738,-450.0,0.00017389,2]
[361180544,1747326659750,-450.0,0.00017395,2]
[361180545,1747326659760,-151.0,0.00017395,2]
[361180546,1747326659770,-213.956376,0.00017395,2]
[361180547,1747326659780,-151.0,0.00017395,2]
[361180548,1747326659789,-201.729913,0.00017395,2]
[361180549,1747326659799,-151.0,0.00017395,2]
[361180550,1747326659809,-152.11673,0.00017395,2]
[361180551,1747326659819,-152.11673,0.00017395,2]
[361180552,1747326659828,-450.0,0.00017397,2]
[361180553,1747326659838,-450.0,0.00017397,2]
[361180554,1747326659847,-450.0,0.00017397,2]
[361180555,1747326659856,-410.45,0.00017397,2]
[361180556,1747326659866,-1158.53,0.00017397,2]
[361180557,1747326659879,-450.0,0.00017397,2]
[361180558,1747326659889,-2023.39,0.00017397,2]
[361180559,1747326659898,-450.0,0.00017397,2]
[361180560,1747326659908,-450.0,0.00017397,2]
[361180561,1747326659918,-450.0,0.00017397,2]
[361180562,1747326659928,-281.84,0.00017397,2]
[361180563,1747326659938,-2030.47,0.00017397,2]
[361180564,1747326659948,-558.77,0.00017397,2]
[361180565,1747326659958,-450.0,0.00017397,2]
[361180566,1747326659968,-450.0,0.00017397,2]
[361180567,1747326659978,-151.0,0.000174,2]
[361180568,1747326659988,-501.92868777,0.00017401,2]
[361180569,1747326659997,-450.0,0.0001743,2]
[361180570,1747326660008,-450.0,0.0001743,2]
[361180571,1747326660018,-450.0,0.0001743,2]
[361180572,1747326660028,-284.9,0.0001743,2]
[361180573,1747326660039,-450.0,0.0001743,2]
[361180574,1747326660049,-606.51,0.0001743,2]
[361180575,1747326660059,-422.23,0.0001743,2]
[361180576,1747326660070,-641.93,0.0001743,2]
[361180577,1747326660081,-566.76,0.0001743,2]
[361180578,1747326660092,-450.0,0.0001743,2]
[361180579,1747326660103,-451.1,0.0001743,2]
[361180580,1747326660114,-307.88,0.0001743,2]
[361180581,1747326660126,-450.0,0.0001743,2]
[361180582,1747326660137,-450.0,0.0001743,2]
[361180583,1747326660147,-450.0,0.0001743,2]
[361180584,1747326660158,-450.0,0.0001743,2]
[361180585,1747326660169,-546.26,0.0001743,2]
[361180586,1747326660180,-490.8,0.0001743,2]
[361180587,1747326660190,-557.42,0.0001743,2]
[361180588,1747326660201,-151.0,0.000175,2]
[361180589,1747326660211,-887.38584,0.00017521,2]
[361180590,1747326660221,-983.75,0.00017526,2]
[361180591,1747326660232,-450.0,0.00017526,2]
[361180592,1747326660242,-450.0,0.00017526,2]
[361180593,1747326660252,-450.0,0.00017526,2]
[361180594,1747326660262,-450.0,0.00017526,2]
[361180595,1747326660272,-151.0,0.00017531,2]
[361180596,1747326660282,-972.21687,0.00017531,2]
[361180597,1747326660292,-151.0,0.00017531,2]
[361180598,1747326660302,-167.064468,0.00017531,2]
[361180599,1747326660312,-972.21687,0.00017531,2]
[361180600,1747326660322,-167.064468,0.00017531,2]
[361180601,1747326660331,-151.0,0.00017531,2]
[361180602,1747326660341,-382.78,0.00017532,2]
[361180603,1747326660351,-450.0,0.00017534,2]
[361180604,1747326660361,-450.0,0.00017534,2]
[361180605,1747326660372,-450.0,0.00017534,2]
[361180606,1747326660382,-1158.53,0.00017534,2]
[361180607,1747326660392,-506.86,0.00017534,2]
[361180608,1747326660401,-2023.39,0.00017534,2]
[361180609,1747326660411,-450.0,0.00017534,2]
[361180610,1747326660422,-450.0,0.00017534,2]
[361180611,1747326660431,-450.0,0.00017534,2]
[361180612,1747326660441,-2030.47,0.00017534,2]
[361180613,1747326660451,-558.77,0.00017534,2]
[361180614,1747326660461,-376.84,0.00017534,2]
[361180615,1747326660472,-450.0,0.00017534,2]
[361180616,1747326660482,-212.16,0.00017567,2]
[361180617,1747326660492,-450.0,0.00017567,2]
[361180618,1747326660502,-450.0,0.00017567,2]
[361180619,1747326660511,-246.97,0.00017567,2]
[361180620,1747326660521,-606.51,0.00017567,2]
[361180621,1747326660531,-641.93,0.00017567,2]
[361180622,1747326660540,-450.0,0.00017567,2]
[361180623,1747326660549,-451.1,0.00017567,2]
[361180624,1747326660558,-450.0,0.00017567,2]
[361180625,1747326660568,-450.0,0.00017567,2]
[361180626,1747326660577,-450.0,0.00017567,2]
[361180627,1747326660587,-450.0,0.00017567,2]
[361180628,1747326660597,-546.26,0.00017567,2]
[361180629,1747326660606,-490.8,0.00017567,2]
[361180630,1747326660616,-1000.0,0.00017567,2]
[361180631,1747326660627,-500.0,0.00017568,2]
[361180632,1747326660640,-1506.7396578,0.00017568,2]
[361180633,1747326660650,-500.0,0.00017568,2]
[361180634,1747326660659,-435.48342722,0.00017568,2]
[361180635,1747326660669,-1000.0,0.00017568,2]
[361180636,1747326660682,-512.93288334,0.00017568,2]
[361180637,1747326660691,-503.52324344,0.00017568,2]
[361180638,1747326660700,-1500.0,0.00017568,2]
[361180639,1747326660710,-500.000001,0.0001758,2]
[361180640,1747326660719,-156.703246,0.00017647,2]
[361180641,1747326660728,-983.75,0.00017663,2]
[361180642,1747326660738,-450.0,0.00017663,2]
[361180643,1747326660746,-450.0,0.00017663,2]
[361180644,1747326660756,-450.0,0.00017663,2]
[361180645,1747326660765,-450.0,0.00017663,2]
[361180646,1747326660775,-312.38005846,0.00017668,2]
[361180647,1747326660785,-1000.0,0.00017668,2]
[361180648,1747326660796,-633.23412823,0.00017668,2]
[361180649,1747326660806,-1000.0,0.00017668,2]
[361180650,1747326660815,-1500.0,0.00017668,2]
[361180651,1747326660825,-1500.0,0.00017668,2]
[361180652,1747326660834,-151.0,0.0001767,2]
[361180653,1747326660843,-165.902412,0.0001767,2]
[361180654,1747326660853,-972.21687,0.0001767,2]
[361180655,1747326660862,-151.0,0.0001767,2]
[361180656,1747326660872,-167.064468,0.0001767,2]
[361180657,1747326660882,-972.21687,0.0001767,2]
[361180658,1747326660962,-167.064468,0.0001767,2]
[361180659,1747326660971,-151.0,0.0001767,2]
[361180660,1747326660981,-236.539,0.00017671,2]
[361180661,1747326660990,-450.0,0.00017671,2]
[361180662,1747326660999,-450.0,0.00017671,2]
[361180663,1747326661009,-450.0,0.00017671,2]
[361180664,1747326661019,-1158.53,0.00017671,2]
[361180665,1747326661028,-2023.39,0.00017671,2]
[361180666,1747326661038,-450.0,0.00017671,2]
[361180667,1747326661047,-450.0,0.00017671,2]